fUSD/lending_fUSD_20250106
["ID","MTS","AMOUNT","RATE_DAILY","PERIOD"]
[347830688,1736144978045,-500.0,0.00010135,2]
[347830689,1736144978070,-545.33,0.00010135,2]
[347830690,1736144978094,-500.0,0.00010135,2]
[347830691,1736144978117,-500.0,0.00010135,2]
[347830692,1736144978144,-500.0,0.00010135,2]
[347830693,1736144978169,-500.0,0.00010135,2]
[347830694,1736144978192,-3612.0,0.00010135,2]
[347830695,1736144978217,-500.0,0.00010135,2]
[347830696,1736144978240,-500.0,0.00010135,2]
[347830697,1736144978263,-500.0,0.00010135,2]
[347830698,1736144978287,-500.0,0.00010135,2]
[347830699,1736144978311,-779.31,0.00010135,2]
[347830700,1736144978333,-500.0,0.00010135,2]
[347830701,1736144978355,-500.0,0.00010135,2]
[347830702,1736144978378,-500.0,0.00010135,2]
[347830703,1736144978402,-500.0,0.00010135,2]
[347830704,1736144978425,-1704.87,0.00010135,2]
[347830705,1736144978447,-740.48,0.00010135,2]
[347830706,1736144978469,-500.0,0.00010135,2]
[347830707,1736144978492,-500.0,0.00010135,2]
[347830708,1736144978514,-500.0,0.00010135,2]
[347830709,1736144978537,-500.0,0.00010135,2]
[347830710,1736144978561,-500.0,0.00010135,2]
[347830711,1736144978584,-723.73,0.00010135,2]
[347830712,1736144978606,-500.0,0.00010135,2]
[347830713,1736144978627,-500.0,0.00010135,2]
[347830714,1736144978649,-947.191641,0.00010135,2]
[347830715,1736144978671,-500.0,0.00010135,2]
[347830716,1736144978693,-500.0,0.00010135,2]
[347830717,1736144978715,-1375.28,0.00010135,2]
[347830718,1736144978737,-500.0,0.00010135,2]
[347830719,1736144978759,-3217.73,0.00010135,2]
[347830720,1736144978782,-500.0,0.00010135,2]
[347830721,1736144978804,-1020.462427,0.00010135,2]
[347830722,1736144978826,-160.254242,0.00010135,2]
[347830723,1736144978848,-500.0,0.00010135,2]
[347830724,1736144978869,-155.918964,0.00010135,2]
[347830725,1736144978891,-500.0,0.00010135,2]
[347830726,1736144978913,-500.0,0.00010135,2]
[347830727,1736144978936,-513.21,0.00010135,2]
[347830728,1736144978959,-1320.61,0.00010135,2]
[347830729,1736144978983,-500.0,0.00010135,2]
[347830730,1736144979005,-500.0,0.00010135,2]
[347830731,1736144979028,-500.0,0.00010135,2]
[347830732,1736144979051,-2685.74,0.00010135,2]
[347830733,1736144979074,-500.0,0.00010135,2]
[347830734,1736144979098,-500.0,0.00010135,2]
[347830735,1736144979120,-500.0,0.00010135,2]
[347830736,1736144979147,-500.0,0.00010135,2]
[347830737,1736144979172,-500.0,0.00010135,2]
[347830738,1736144979194,-2762.4,0.00010135,2]
[347830739,1736144979219,-1000.0,0.00010135,2]
[347830740,1736144979240,-318.97017049,0.00010135,2]
[347830741,1736144979263,-1599.59,0.00010135,2]
[347830742,1736144979286,-500.0,0.00010135,2]
[347830743,1736144979308,-708.12,0.00010135,2]
[347830744,1736144979329,-500.0,0.00010135,2]
[347830745,1736144979351,-869.7,0.00010135,2]
[347830746,1736144979373,-500.0,0.00010135,2]
[347830747,1736144979396,-500.0,0.00010135,2]
[347830748,1736144979420,-500.0,0.00010135,2]
[347830749,1736144979443,-791.59,0.00010135,2]
[347830750,1736144979703,-502.62,0.00010135,2]
[347830751,1736144979727,-4631.55,0.00010135,2]
[347830752,1736144979752,-2387.68,0.00010135,2]
[347830753,1736144979775,-537.25,0.00010135,2]
[347830754,1736144979798,-763.01,0.00010135,2]
[347830755,1736144979821,-843.86,0.00010135,2]
[347830756,1736144979843,-500.0,0.00010135,2]
[347830757,1736144979865,-1798.86,0.00010135,2]
[347830758,1736144979887,-500.0,0.00010135,2]
[347830759,1736144979909,-500.0,0.00010135,2]
[347830760,1736144979932,-1693.78,0.00010135,2]
[347830761,1736144979956,-1892.28,0.00010135,2]
[347830762,1736144979978,-500.0,0.00010135,2]
[347830763,1736144980000,-500.0,0.00010135,2]
[347830764,1736144980023,-500.0,0.00010135,2]
[347830765,1736144980047,-2671.15,0.00010135,2]
[347830766,1736144980069,-1297.35,0.00010135,2]
[347830767,1736144980092,-554.22,0.00010135,2]
[347830768,1736144980115,-500.0,0.00010135,2]
[347830769,1736144980141,-500.0,0.00010135,2]
[347830770,1736144980165,-500.0,0.00010135,2]
[347830771,1736144980190,-870.46,0.00010135,2]
[347830772,1736144980214,-500.0,0.00010136,2]
[347830773,1736144980237,-500.0,0.00010136,2]
[347830774,1736144980260,-500.0,0.00010136,2]
[347830775,1736144980284,-500.0,0.00010136,2]
[347830776,1736144980307,-397.84440453,0.00010136,2]
[347830777,1736144980329,-620.9,0.00010136,2]
[347830778,1736144980354,-396.28938906,0.00010136,2]
[347830779,1736144980378,-500.0,0.00010136,2]
[347830780,1736144980403,-500.0,0.00010136,2]
[347830781,1736144980426,-500.0,0.00010136,2]
[347830782,1736144980450,-500.0,0.00010136,2]
[347830783,1736144980473,-500.0,0.00010136,2]
[347830784,1736144980497,-500.0,0.00010136,2]
[347830785,1736144980520,-500.0,0.00010136,2]
[347830786,1736144980544,-500.0,0.00010136,2]
[347830787,1736144980567,-500.0,0.00010136,2]
[347830788,1736144980591,-500.0,0.00010136,2]
[347830789,1736144980613,-500.0,0.00010136,2]
[347830790,1736144980635,-500.0,0.00010136,2]
[347830791,1736144980657,-500.0,0.00010136,2]
[347830792,1736144980679,-500.0,0.00010136,2]
[347830793,1736144980702,-500.0,0.00010136,2]
[347830794,1736144980725,-500.0,0.00010136,2]
[347830795,1736144980749,-500.0,0.00010136,2]
[347830796,1736144980771,-500.0,0.00010136,2]
[347830797,1736144980795,-500.0,0.00010136,2]
[347830798,1736144980818,-500.0,0.00010136,2]
[347830799,1736144980840,-500.0,0.00010136,2]
[347830800,1736144980862,-500.0,0.00010136,2]
[347830801,1736144980885,-500.0,0.00010136,2]
[347830802,1736144980907,-500.0,0.00010136,2]
[347830803,1736144980929,-500.0,0.00010136,2]
[347830804,1736144980952,-500.0,0.00010136,2]
[347830805,1736144980974,-500.0,0.00010136,2]
[347830806,1736144980996,-500.0,0.00010136,2]
[347830807,1736144981019,-500.0,0.00010136,2]
[347830808,1736144981041,-500.0,0.00010136,2]
[347830809,1736144981067,-500.0,0.00010136,2]
[347830810,1736144981089,-161.84654381,0.00010136,2]
[347830811,1736144981112,-500.0,0.00010136,2]
[347830812,1736144981136,-500.0,0.00010136,2]
[347830813,1736144981159,-500.0,0.00010136,2]
[347830814,1736144981182,-500.0,0.00010136,2]
[347830815,1736144981205,-500.0,0.00010136,2]
[347830816,1736144981226,-422.15349019,0.00010136,2]
[347830817,1736144981248,-500.0,0.00010136,2]
[347830818,1736144981269,-500.0,0.00010136,2]
[347830819,1736144981291,-500.0,0.00010136,2]
[347830820,1736144981313,-500.0,0.00010136,2]
[347830821,1736144981334,-500.0,0.00010136,2]
[347830822,1736144981357,-500.0,0.00010136,2]
[347830823,1736144981380,-500.0,0.00010136,2]
[347830824,1736144981404,-500.0,0.00010136,2]
[347830825,1736144981426,-3378.97,0.00010136,2]
[347830826,1736144981449,-500.0,0.00010136,2]
[347830827,1736144981471,-500.0,0.00010136,2]
[347830828,1736144981492,-500.0,0.00010136,2]
[347830829,1736144981514,-500.0,0.00010136,2]
[347830830,1736144981537,-500.0,0.00010136,2]
[347830831,1736144981560,-500.0,0.00010136,2]
[347830832,1736144981582,-500.0,0.00010136,2]
[347830833,1736144981603,-500.0,0.00010136,2]
[347830834,1736144981625,-500.0,0.00010136,2]
[347830835,1736144981650,-563.84,0.00010136,2]
[347830836,1736144981672,-500.0,0.00010136,2]
[347830837,1736144981694,-500.0,0.00010136,2]
[347830838,1736144981716,-500.0,0.00010136,2]
[347830839,1736144981738,-498.79468221,0.00010136,2]
[347830840,1736144981760,-500.0,0.00010136,2]
[347830841,1736144981783,-500.0,0.00010136,2]
[347830842,1736144981806,-500.0,0.00010136,2]
[347830843,1736144981829,-530.84,0.00010136,2]
[347830844,1736144981851,-608.51248184,0.00010136,2]
[347830845,1736144981874,-500.0,0.00010136,2]
[347830846,1736144981897,-1566.76,0.00010136,2]
[347830847,1736144981921,-212.94143247,0.00010136,2]
[347830848,1736144981944,-500.0,0.00010136,2]
[347830849,1736144981968,-500.0,0.00010136,2]
[347830850,1736144981990,-500.0,0.00010136,2]
[347830851,1736144982013,-500.0,0.00010136,2]
[347830852,1736144982037,-1078.09,0.00010136,2]
[347830853,1736144982059,-897.75,0.00010136,2]
[347830854,1736144982082,-500.0,0.00010136,2]
[347830855,1736144982105,-793.0,0.00010137,2]
[347830856,1736144982131,-23689541.08705874,0.00010137,2]
[347830873,1736145032117,-474.0,9.973e-05,2]
[347830874,1736145032129,-26.0,9.973e-05,2]
[347830875,1736145032142,-443.1440006,9.999e-05,2]
[347830876,1736145032486,-56.8559994,9.999e-05,2]
[347830877,1736145032496,-212.35430723,9.999e-05,2]
[347830878,1736145032508,-287.64569277,9.999e-05,2]
[347830879,1736145032517,-142.59808275,9.999e-05,2]
[347831390,1736145037977,-357.40191725,9.999e-05,2]
[347831392,1736145037987,-500.0,9.999e-05,2]
[347831394,1736145037996,-500.0,9.999e-05,2]
[347831396,1736145038005,-500.0,9.999e-05,2]
[347831398,1736145038015,-500.0,9.999e-05,2]
[347831400,1736145038024,-500.0,9.999e-05,2]
[347831402,1736145038034,-500.0,9.999e-05,2]
[347831404,1736145038043,-1074.34,9.999e-05,2]
[347831405,1736145038053,-903.44,9.999e-05,2]
[347831407,1736145038062,-500.0,9.999e-05,2]
[347831409,1736145038072,-503.17,9.999e-05,2]
[347831411,1736145038081,-500.0,9.999e-05,2]
[347831414,1736145038090,-500.0,9.999e-05,2]
[347831415,1736145038100,-161.41,0.0001,2]
[347831418,1736145038109,-12417.63808275,0.0001,2]
[347831422,1736145038145,-3545.67089594,0.0001,2]
[347831424,1736145038156,-1060187.69102131,0.0001,2]
[347831426,1736145038165,-192.90400354,0.00010037,2]
[347831428,1736145038175,-500.0,0.00010133,2]
[347831430,1736145038185,-300.0,0.00010133,2]
[347831432,1736145038195,-746.84,0.00010133,2]
[347831434,1736145038204,-500.0,0.00010134,2]
[347831437,1736145038216,-3238.18,0.00010134,2]
[347831439,1736145038226,-709.58,0.00010134,2]
[347831441,1736145038235,-1067.05,0.00010134,2]
[347831443,1736145038245,-500.0,0.00010134,2]
[347831445,1736145038254,-808.7,0.00010134,2]
[347831447,1736145038263,-1317.98,0.00010134,2]
[347831449,1736145038273,-556.89,0.00010134,2]
[347831451,1736145038282,-3895.15,0.00010134,2]
[347831453,1736145038291,-500.0,0.00010134,2]
[347831455,1736145038301,-500.0,0.00010134,2]
[347831457,1736145038311,-500.0,0.00010134,2]
[347831459,1736145038320,-500.0,0.00010135,2]
[347831461,1736145038329,-1033.17,0.00010135,2]
[347831463,1736145038339,-500.0,0.00010135,2]
[347831465,1736145038348,-500.0,0.00010135,2]
[347831467,1736145038356,-500.0,0.00010135,2]
[347831469,1736145038366,-500.0,0.00010135,2]
[347831471,1736145038375,-500.0,0.00010135,2]
[347831473,1736145038384,-1000.0,0.00010135,2]
[347831475,1736145038393,-500.0,0.00010135,2]
[347831477,1736145038402,-323.09109233,0.00010136,2]
[347831479,1736145038412,-150.0,0.00010136,2]
[347831481,1736145038421,-1677.16,0.00010136,2]
[347831482,1736145038431,-1000.54,0.00010136,2]
[347831485,1736145038441,-500.0,0.00010136,2]
[347831486,1736145038451,-500.0,0.00010136,2]
[347831488,1736145038460,-1643.5,0.00010136,2]
[347831490,1736145038469,-500.0,0.00010136,2]
[347831492,1736145038478,-500.0,0.00010136,2]
[347831494,1736145038487,-657.0,0.00010137,2]
[347831496,1736145038497,-4653585.29725886,0.00010137,2]
[347831498,1736145038506,-160.47,0.00010137,2]
[347831500,1736145038515,-776.19,0.00010137,2]
[347831502,1736145038525,-183.08,0.00010137,2]
[347831504,1736145038534,-2000.0,0.00010137,2]
[347831506,1736145038544,-200.0,0.00010137,2]
[347831508,1736145038553,-3000.0,0.00010137,2]
[347831510,1736145038563,-200.0,0.00010137,2]
[347831513,1736145038576,-500.69759413,0.00010173,2]
[347831515,1736145038585,-499.40250892,0.00010173,2]
[347831517,1736145038594,-160.27206474,0.00010173,2]
[347831519,1736145038603,-418.54,0.000102,2]
[347831521,1736145038613,-272.83,0.000102,2]
[347831523,1736145038622,-150.0,0.000102,2]
[347831525,1736145038631,-150.0,0.000102,2]
[347831527,1736145038640,-436.97,0.000102,2]
[347831529,1736145038649,-436.97,0.000102,2]
[347831531,1736145038659,-150.0,0.000102,2]
[347831533,1736145038669,-436.97,0.000102,2]
[347831535,1736145038678,-150.0,0.000102,2]
[347831537,1736145038688,-436.97,0.000102,2]
[347831539,1736145038698,-150.0,0.000102,2]
[347831565,1736145038930,-436.97,0.000102,2]
[347831567,1736145038939,-152.93,0.000102,2]
[347831569,1736145038950,-150.0,0.000102,2]
[347831571,1736145038960,-436.21,0.000102,2]
[347831573,1736145038969,-287.49,0.000102,2]
[347831575,1736145038978,-150.0,0.000102,2]
[347831577,1736145038988,-151.85,0.000102,2]
[347831580,1736145038998,-2000.0,0.00010238,2]
[347831581,1736145039007,-200.0,0.00010238,2]
[347831583,1736145039016,-200.0,0.00010238,2]
[347831585,1736145039025,-500.0,0.00010273,2]
[347831587,1736145039034,-616.75,0.00010273,2]
[347831589,1736145039044,-500.0,0.00010273,2]
[347831591,1736145039053,-500.0,0.00010273,2]
[347831593,1736145039063,-500.0,0.00010273,2]
[347831595,1736145039073,-500.0,0.00010273,2]
[347831597,1736145039082,-500.0,0.00010273,2]
[347831599,1736145039092,-539.0,0.00010273,2]
[347831601,1736145039102,-500.0,0.00010273,2]
[347831603,1736145039112,-679.67,0.00010273,2]
[347831605,1736145039122,-500.0,0.00010273,2]
[347831607,1736145039132,-500.0,0.00010273,2]
[347831609,1736145039144,-500.0,0.00010273,2]
[347831611,1736145039154,-500.0,0.00010273,2]
[347831613,1736145039163,-500.0,0.00010273,2]
[347831615,1736145039172,-500.0,0.00010273,2]
[347831617,1736145039183,-500.0,0.00010273,2]
[347831619,1736145039192,-500.0,0.00010273,2]
[347831621,1736145039201,-500.0,0.00010273,2]
[347831623,1736145039213,-401.77688933,0.00010273,2]
[347831625,1736145039224,-500.0,0.00010273,2]
[347831627,1736145039233,-500.0,0.00010273,2]
[347831629,1736145039242,-500.0,0.00010273,2]
[347831631,1736145039253,-500.0,0.00010273,2]
[347831633,1736145039262,-500.0,0.00010273,2]
[347831635,1736145039271,-500.0,0.00010273,2]
[347831637,1736145039280,-500.0,0.00010273,2]
[347831639,1736145039290,-500.0,0.00010273,2]
[347831641,1736145039301,-537.04,0.00010273,2]
[347831643,1736145039311,-676.52,0.00010273,2]
[347831645,1736145039320,-742.41,0.00010273,2]
[347831647,1736145039329,-500.0,0.00010273,2]
[347831649,1736145039337,-500.0,0.00010273,2]
[347831651,1736145039346,-500.0,0.00010273,2]
[347831653,1736145039355,-623.6679591,0.00010273,2]
[347831655,1736145039364,-500.0,0.00010273,2]
[347831657,1736145039374,-500.0,0.00010273,2]
[347831659,1736145039383,-500.0,0.00010273,2]
[347831661,1736145039392,-500.0,0.00010273,2]
[347831663,1736145039402,-1127.61,0.00010273,2]
[347831665,1736145039412,-500.0,0.00010273,2]
[347831667,1736145039421,-854.09,0.00010273,2]
[347831669,1736145039431,-1050.16,0.00010273,2]
[347831671,1736145039440,-1133.49,0.00010273,2]
[347831673,1736145039449,-500.0,0.00010273,2]
[347831675,1736145039459,-500.0,0.00010273,2]
[347831677,1736145039468,-500.0,0.00010273,2]
[347831679,1736145039478,-500.0,0.00010273,2]
[347831681,1736145039488,-500.0,0.00010273,2]
[347831683,1736145039497,-500.0,0.00010273,2]
[347831685,1736145039507,-745.52,0.00010273,2]
[347831687,1736145039516,-500.0,0.00010273,2]
[347831689,1736145039526,-500.0,0.00010273,2]
[347831691,1736145039535,-500.0,0.00010273,2]
[347831693,1736145039545,-500.0,0.00010273,2]
[347831695,1736145039554,-599.3,0.00010273,2]
[347831697,1736145039564,-500.0,0.00010273,2]
[347831699,1736145039573,-693.0,0.00010273,2]
[347831701,1736145039583,-500.0,0.00010273,2]
[347831702,1736145039593,-500.0,0.00010273,2]
[347831703,1736145039603,-617.65,0.00010273,2]
[347831704,1736145039612,-1719.61,0.00010273,2]
[347831705,1736145039622,-500.0,0.00010273,2]
[347831706,1736145039631,-2070.26,0.00010273,2]
[347831707,1736145039641,-500.0,0.00010273,2]
[347831708,1736145039651,-659.53,0.00010273,2]
[347831709,1736145039660,-852.96,0.00010273,2]
[347831710,1736145039670,-500.0,0.00010273,2]
[347831712,1736145039680,-500.0,0.00010273,2]
[347831714,1736145039689,-500.0,0.00010273,2]
[347831716,1736145039699,-500.0,0.00010273,2]
[347831718,1736145039708,-500.0,0.00010273,2]
[347831720,1736145039718,-500.0,0.00010273,2]
[347831722,1736145039727,-500.0,0.00010273,2]
[347831724,1736145039737,-500.0,0.00010273,2]
[347831726,1736145039746,-1074.34,0.00010273,2]
[347831728,1736145039755,-903.44,0.00010273,2]
[347831730,1736145039764,-500.0,0.00010273,2]
[347831732,1736145039773,-503.17,0.00010273,2]
[347831734,1736145039782,-500.0,0.00010273,2]
[347831736,1736145039791,-500.0,0.00010273,2]
[347831737,1736145039801,-2000.0,0.00010341,2]
[347831739,1736145039810,-200.0,0.00010341,2]
[347831741,1736145039819,-200.0,0.00010341,2]
[347831743,1736145039828,-150.0,0.000104,2]
[347831745,1736145039837,-500.0,0.00010407,2]
[347831747,1736145039847,-820.64,0.00010407,2]
[347831749,1736145039856,-500.0,0.00010407,2]
[347831751,1736145039865,-500.0,0.00010407,2]
[347831753,1736145039875,-746.84,0.00010407,2]
[347831755,1736145039884,-3008.9,0.00010408,2]
[347831757,1736145039894,-1583.23,0.00010408,2]
[347831759,1736145039903,-1267.23,0.00010408,2]
[347831761,1736145039912,-915.32,0.00010408,2]
[347831763,1736145039922,-900.0,0.00010408,2]
[347831765,1736145039931,-3032.42,0.00010408,2]
[347831767,1736145039941,-500.0,0.00010408,2]
[347831769,1736145039951,-842.83,0.00010408,2]
[347831771,1736145039960,-1732.71,0.00010408,2]
[347831773,1736145039969,-6388.2,0.00010408,2]
[347831775,1736145039979,-523.7,0.00010408,2]
[347831777,1736145039987,-5781.88,0.00010408,2]
[347831779,1736145039997,-500.0,0.00010408,2]
[347831781,1736145040007,-500.0,0.00010408,2]
[347831783,1736145040016,-500.0,0.00010408,2]
[347831785,1736145040026,-506.59,0.00010408,2]
[347831788,1736145040035,-500.0,0.00010408,2]
[347831791,1736145040045,-1181.02,0.00010408,2]
[347831794,1736145040055,-500.0,0.00010408,2]
[347831796,1736145040064,-549.52,0.00010408,2]
[347831798,1736145040073,-500.0,0.00010408,2]
[347831800,1736145040083,-500.0,0.00010408,2]
[347831802,1736145040093,-500.0,0.00010408,2]
[347831804,1736145040102,-2164.86,0.00010408,2]
[347831806,1736145040112,-500.0,0.00010408,2]
[347831808,1736145040122,-500.0,0.00010408,2]
[347831810,1736145040132,-500.0,0.00010408,2]
[347831812,1736145040144,-607.31,0.00010408,2]
[347831814,1736145040154,-500.0,0.00010408,2]
[347831817,1736145040165,-3608.63,0.00010408,2]
[347831818,1736145040175,-500.0,0.00010408,2]
[347831820,1736145040185,-1817.72,0.00010408,2]
[347831822,1736145040195,-500.0,0.00010408,2]
[347831824,1736145040204,-1748.04,0.00010408,2]
[347831826,1736145040214,-500.0,0.00010408,2]
[347831828,1736145040223,-500.0,0.00010408,2]
[347831830,1736145040233,-3247.46,0.00010408,2]
[347831832,1736145040242,-594.02,0.00010408,2]
[347831834,1736145040251,-500.0,0.00010408,2]
[347831836,1736145040260,-8147.86,0.00010408,2]
[347831838,1736145040270,-500.0,0.00010408,2]
[347831841,1736145040281,-500.0,0.00010408,2]
[347831842,1736145040291,-574.78,0.00010408,2]
[347831845,1736145040300,-702.13,0.00010408,2]
[347831846,1736145040309,-541.15,0.00010408,2]
[347831848,1736145040319,-500.0,0.00010408,2]
[347831850,1736145040328,-1342.65,0.00010408,2]
[347831852,1736145040338,-4597.27,0.00010408,2]
[347831854,1736145040348,-535.67,0.00010408,2]
[347831856,1736145040357,-500.0,0.00010408,2]
[347831858,1736145040367,-500.0,0.00010408,2]
[347831860,1736145040376,-579.95,0.00010408,2]
[347831862,1736145040386,-1041.94,0.00010408,2]
[347831864,1736145040396,-500.0,0.00010408,2]
[347831866,1736145040405,-1462.91,0.00010408,2]
[347831868,1736145040416,-500.0,0.00010408,2]
[347831871,1736145040425,-3292.73,0.00010408,2]
[347831873,1736145040435,-789.11,0.00010408,2]
[347831875,1736145040444,-2644.15,0.00010408,2]
[347831877,1736145040453,-565.34,0.00010408,2]
[347831879,1736145040463,-1586.17,0.00010408,2]
[347831881,1736145040472,-686.5,0.00010408,2]
[347831883,1736145040482,-500.0,0.00010408,2]
[347831884,1736145040491,-2918.45,0.00010408,2]
[347831887,1736145040501,-1163.25,0.00010408,2]
[347831888,1736145040510,-500.0,0.00010408,2]
[347831890,1736145040520,-500.0,0.00010408,2]
[347831892,1736145040529,-3238.18,0.00010408,2]
[347831894,1736145040539,-709.58,0.00010408,2]
[347831896,1736145040548,-1067.05,0.00010408,2]
[347831898,1736145040558,-500.0,0.00010408,2]
[347831900,1736145040567,-808.7,0.00010408,2]
[347831903,1736145040577,-1317.98,0.00010408,2]
[347831904,1736145040588,-556.89,0.00010408,2]
[347831906,1736145040597,-3895.15,0.00010408,2]
[347831908,1736145040607,-500.0,0.00010408,2]
[347831910,1736145040616,-500.0,0.00010408,2]
[347831912,1736145040625,-487.34365362,0.00010408,2]
[347831915,1736145040635,-500.0,0.00010409,2]
[347831917,1736145040644,-829.01,0.00010409,2]
[347831919,1736145040654,-500.0,0.00010409,2]
[347831921,1736145040663,-500.0,0.00010409,2]
[347831922,1736145040673,-500.0,0.00010409,2]
[347831924,1736145040683,-331.79585934,0.00010409,2]
[347831927,1736145040692,-500.0,0.00010409,2]
[347831928,1736145040702,-500.0,0.00010409,2]
[347831931,1736145040712,-500.0,0.00010409,2]
[347831932,1736145040721,-500.0,0.00010409,2]
[347831934,1736145040730,-500.0,0.00010409,2]
[347831936,1736145040739,-500.0,0.00010409,2]
[347831938,1736145040749,-500.0,0.00010409,2]
[347831940,1736145040758,-200.0,0.00010409,2]
[347831942,1736145040768,-500.0,0.00010409,2]
[347831944,1736145040777,-500.0,0.00010409,2]
[347831946,1736145040786,-706.26,0.00010409,2]
[347831948,1736145040795,-500.0,0.00010409,2]
[347831950,1736145040804,-850.88,0.00010409,2]
[347831952,1736145040814,-500.0,0.00010409,2]
[347831954,1736145040824,-500.0,0.00010409,2]
[347831956,1736145040834,-500.0,0.00010409,2]
[347831959,1736145040844,-500.0,0.00010409,2]
[347831960,1736145040854,-545.33,0.00010409,2]
[347831962,1736145040863,-500.0,0.00010409,2]
[347831965,1736145040873,-500.0,0.00010409,2]
[347831966,1736145040883,-500.0,0.00010409,2]
[347831969,1736145040893,-500.0,0.00010409,2]
[347831970,1736145040902,-500.0,0.00010409,2]
[347831973,1736145040912,-500.0,0.00010409,2]
[347831974,1736145040922,-500.0,0.00010409,2]
[347831976,1736145040932,-500.0,0.00010409,2]
[347831978,1736145040941,-500.0,0.00010409,2]
[347831980,1736145040951,-500.0,0.00010409,2]
[347831982,1736145040960,-500.0,0.00010409,2]
[347831984,1736145040970,-500.0,0.00010409,2]
[347831986,1736145040980,-1704.87,0.00010409,2]
[347831989,1736145040990,-740.48,0.00010409,2]
[347831991,1736145041000,-500.0,0.00010409,2]
[347831992,1736145041010,-500.0,0.00010409,2]
[347831995,1736145041020,-500.0,0.00010409,2]
[347831996,1736145041030,-500.0,0.00010409,2]
[347831999,1736145041040,-500.0,0.00010409,2]
[347832001,1736145041050,-723.73,0.00010409,2]
[347832003,1736145041059,-500.0,0.00010409,2]
[347832004,1736145041069,-500.0,0.00010409,2]
[347832006,1736145041078,-947.191641,0.00010409,2]
[347832008,1736145041089,-500.0,0.00010409,2]
[347832010,1736145041098,-500.0,0.00010409,2]
[347832013,1736145041107,-500.0,0.00010409,2]
[347832015,1736145041117,-3217.73,0.00010409,2]
[347832017,1736145041127,-500.0,0.00010409,2]
[347832019,1736145041140,-1020.462427,0.00010409,2]
[347832021,1736145041150,-500.0,0.00010409,2]
[347832023,1736145041160,-500.0,0.00010409,2]
[347832025,1736145041170,-500.0,0.00010409,2]
[347832027,1736145041180,-513.21,0.00010409,2]
[347832029,1736145041193,-1320.61,0.00010409,2]
[347832030,1736145041202,-500.0,0.00010409,2]
[347832033,1736145041214,-500.0,0.00010409,2]
[347832035,1736145041223,-500.0,0.00010409,2]
[347832037,1736145041233,-2685.74,0.00010409,2]
[347832039,1736145041243,-500.0,0.00010409,2]
[347832041,1736145041253,-500.0,0.00010409,2]
[347832042,1736145041263,-500.0,0.00010409,2]
[347832044,1736145041272,-500.0,0.00010409,2]
[347832046,1736145041282,-500.0,0.00010409,2]
[347832049,1736145041292,-2762.4,0.00010409,2]
[347832050,1736145041301,-1599.59,0.00010409,2]
[347832052,1736145041311,-500.0,0.00010409,2]
[347832054,1736145041320,-708.12,0.00010409,2]
[347832056,1736145041330,-500.0,0.00010409,2]